bitfinex-derivatives/quotes_BNBF0:USTF0_20230831
["timestamp","ask_amount","ask_price","bid_price","bid_amount"]
[1693495217837,0.14655308,222.92,222.56,0.1845749]
[1693495218136,0.14655308,222.92,222.57,0.1845749]
[1693495218331,0.14655308,222.92,222.58,0.1845749]
[1693495218534,0.14655308,222.92,222.59,0.1845749]
[1693495218733,0.14655308,222.91,222.52,0.1845749]
[1693495218931,0.14655308,222.91,222.53,0.1845749]
[1693495219132,0.14655308,222.91,222.54,0.1845749]
[1693495219339,0.14655308,222.91,222.55,0.1845749]
[1693495219529,0.14655308,222.91,222.51,0.1845749]
[1693495219835,0.14655308,222.91,222.52,0.1845749]
[1693495220036,0.14655308,222.91,222.53,0.1845749]
[1693495220231,0.14655308,222.91,222.54,0.1845749]
[1693495220435,0.14655308,222.91,222.51,0.1845749]
[1693495220636,0.14655308,222.91,222.52,0.1845749]
[1693495220935,0.14655308,222.91,222.53,0.1845749]
[1693495221135,0.14655308,222.91,222.54,0.1845749]
[1693495221337,0.14655308,222.91,222.51,0.1845749]
[1693495221540,0.14655308,222.91,222.52,0.1845749]
[1693495221836,0.14655308,222.9,222.53,0.1845749]
[1693495222038,0.14655308,222.9,222.51,0.1845749]
[1693495222337,0.14655308,222.9,222.52,0.1845749]
[1693495222533,0.14655308,222.9,222.53,0.1845749]
[1693495222741,0.14655308,222.9,222.51,0.1845749]
[1693495223039,0.14655308,222.9,222.52,0.1845749]
[1693495223239,0.14655308,222.9,222.53,0.1845749]
[1693495223438,0.14655308,222.9,222.51,0.1845749]
[1693495223635,0.14655308,222.9,222.52,0.1845749]
[1693495223839,0.14655308,222.9,222.53,0.1845749]
[1693495224033,0.14655308,222.9,222.54,0.1845749]
[1693495224240,0.14655308,222.9,222.5,0.1845749]
[1693495224437,0.14655308,222.9,222.51,0.1845749]
[1693495224637,0.14655308,222.9,222.52,0.1845749]
[1693495224838,0.14655308,222.9,222.5,0.1845749]
[1693495225340,0.14655308,222.9,222.5,0.25771006]
[1693495225532,0.07325751,222.87,222.51,0.1845749]
[1693495227538,0.07325751,222.82,222.51,0.1845749]
[1693495227841,0.07325751,222.82,222.52,0.1845749]
[1693495228041,0.07325751,222.82,222.53,0.1845749]
[1693495228241,0.07325751,222.82,222.45,0.1845749]
[1693495228541,0.07325751,222.82,222.46,0.1845749]
[1693495228734,0.07325751,222.82,222.45,0.1845749]
[1693495229843,0.07325751,222.82,222.44,0.1845749]
[1693495230044,0.07325751,222.82,222.45,0.1845749]
[1693495230246,0.07325751,222.82,222.46,0.1845749]
[1693495230538,0.07325751,222.82,222.47,0.1845749]
[1693495230742,0.07325751,222.82,222.45,0.1845749]
[1693495230943,0.07325751,222.82,222.46,0.1845749]
[1693495231139,0.07325751,222.82,222.44,0.1845749]
[1693495231337,0.07325751,222.81,222.44,0.1845749]
[1693495231941,0.07325751,222.8,222.43,0.1845749]
[1693495232142,0.07325751,222.8,222.44,0.1845749]
[1693495232445,0.07325751,222.79,222.45,0.1845749]
[1693495232641,0.07325751,222.79,222.42,0.1845749]
[1693495232846,0.07325751,222.79,222.43,0.1845749]
[1693495233145,0.07325751,222.79,222.44,0.1845749]
[1693495233343,0.07325751,222.79,222.42,0.25771006]
[1693495233646,0.07325751,222.79,222.43,0.1845749]
[1693495233844,0.07325751,222.79,222.44,0.1845749]
[1693495234146,0.07325751,222.79,222.45,0.1845749]
[1693495234346,0.07325751,222.79,222.46,0.1845749]
[1693495234646,0.07325751,222.79,222.47,0.1845749]
[1693495234846,0.07325751,222.79,222.43,0.1845749]
[1693495235047,0.07325751,222.79,222.44,0.1845749]
[1693495235239,0.07325751,222.79,222.42,0.1845749]
[1693495235440,0.07325751,222.79,222.43,0.1845749]
[1693495235644,0.07325751,222.79,222.42,0.1845749]
[1693495235840,0.07325751,222.79,222.43,0.1845749]
[1693495236043,0.07325751,222.79,222.42,0.1845749]
[1693495236244,0.07325751,222.79,222.43,0.1845749]
[1693495236449,0.07325751,222.79,222.42,0.1845749]
[1693495236746,0.07325751,222.8,222.43,0.1845749]
[1693495236941,0.07325751,222.8,222.4,0.07313516]
[1693495236942,0.07325751,222.8,222.44,0.1845749]
[1693495237147,0.07325751,222.8,222.45,0.1845749]
[1693495237349,0.07325751,222.79,222.41,0.25771006]
[1693495237548,0.07325751,222.79,222.42,0.1845749]
[1693495238646,0.07325751,222.8,222.42,0.1845749]
[1693495238851,0.07325751,222.8,222.43,0.1845749]
[1693495239053,0.07325751,222.8,222.4,0.07313516]
[1693495239054,0.07325751,222.8,222.44,0.1845749]
[1693495239351,0.07325751,222.8,222.45,0.1845749]
[1693495239553,0.07325751,222.8,222.41,0.1845749]
[1693495239751,0.07325751,222.8,222.42,0.1845749]
[1693495239950,0.07325751,222.8,222.41,0.1845749]
[1693495240149,0.07325751,222.8,222.42,0.1845749]
[1693495240346,0.07325751,222.8,222.43,0.1845749]
[1693495240551,0.07325751,222.8,222.44,0.1845749]
[1693495240749,0.07325751,222.8,222.45,0.1845749]
[1693495240952,0.07325751,222.8,222.4,0.1845749]
[1693495241156,0.07325751,222.8,222.41,0.1845749]
[1693495241353,0.07325751,222.8,222.4,0.1845749]
[1693495241555,0.07325751,222.8,222.41,0.1845749]
[1693495242155,0.07325751,222.8,222.42,0.1845749]
[1693495242354,0.07325751,222.8,222.4,0.1845749]
[1693495242555,0.07325751,222.8,222.41,0.1845749]
[1693495242751,0.07325751,222.8,222.42,0.1845749]
[1693495242955,0.07325751,222.8,222.43,0.1845749]
[1693495243155,0.07325751,222.8,222.44,0.1845749]
[1693495243357,0.07325751,222.8,222.4,0.1845749]
[1693495243557,0.07325751,222.8,222.41,0.1845749]
[1693495243852,0.07325751,222.8,222.42,0.1845749]
[1693495244058,0.07325751,222.8,222.4,0.1845749]
[1693495244252,0.07325751,222.8,222.41,0.1845749]
[1693495244456,0.07325751,222.8,222.42,0.1845749]
[1693495244651,0.07325751,222.8,222.4,0.1845749]
[1693495244955,0.07325751,222.8,222.41,0.1845749]
[1693495245152,0.07325751,222.8,222.42,0.1845749]
[1693495245356,0.07325751,222.8,222.43,0.1845749]
[1693495245551,0.07325751,222.8,222.39,0.25771006]
[1693495245755,0.07325751,222.8,222.4,0.1845749]
[1693495245957,0.07325751,222.8,222.39,0.1845749]
[1693495246259,0.07325751,222.8,222.4,0.1845749]
[1693495246557,0.07325751,222.8,222.41,0.1845749]
[1693495246757,0.07325751,222.8,222.42,0.1845749]
[1693495246957,0.07325751,222.8,222.39,0.1845749]
[1693495247153,0.07325751,222.81,222.4,0.1845749]
[1693495248658,0.07325751,222.8,222.4,0.1845749]
[1693495250661,0.07325751,222.8,222.4,0.25771006]
[1693495250960,0.07325751,222.8,222.41,0.1845749]
[1693495251959,0.07325751,222.79,222.41,0.1845749]
[1693495253754,0.07325751,222.79,222.41,0.25771006]
[1693495253955,0.07325751,222.79,222.42,0.1845749]
[1693495254361,0.07325751,222.78,222.41,0.1845749]
[1693495254561,0.07325751,222.78,222.42,0.1845749]
[1693495255761,0.07325751,222.77,222.42,0.25771006]
[1693495255960,0.07325751,222.77,222.43,0.1845749]
[1693495256861,0.07325751,222.76,222.44,0.1845749]
[1693495257056,0.07325751,222.76,222.45,0.1845749]
[1693495257262,0.07325751,222.76,222.46,0.1845749]
[1693495257455,0.07325751,222.77,222.47,0.1845749]
[1693495257656,0.14655308,222.79,222.19,0.97513554]
[1693495257657,0.07325751,222.76,222.48,0.1845749]
[1693495257857,0.07325751,222.76,222.44,0.1845749]
[1693495258060,0.07325751,222.75,222.45,0.1845749]
[1693495258256,0.07325751,222.75,222.44,0.1845749]
[1693495258462,0.07325751,222.75,222.45,0.1845749]
[1693495258658,0.07325751,222.74,222.44,0.1845749]
[1693495258862,0.07325751,222.74,222.45,0.1845749]
[1693495259164,0.07325751,222.74,222.46,0.1845749]
[1693495259365,0.07325751,222.75,222.44,0.25771006]
[1693495259558,0.07325751,222.74,222.45,0.1845749]
[1693495259761,0.07325751,222.73,222.45,0.07313516]
[1693495259957,0.07325751,222.73,222.46,0.1845749]
[1693495261058,0.07325751,222.73,222.47,0.1845749]
[1693495261262,0.07325751,222.73,222.48,0.1845749]
[1693495261463,0.07325751,222.72,222.49,0.1845749]
[1693495261659,0.07325751,222.7,222.46,0.07313516]
[1693495261864,0.07325751,222.7,222.47,0.18492078]
[1693495262261,0.07325751,222.7,222.46,0.18492078]
[1693495262461,0.07325751,222.7,222.47,0.18492078]
[1693495262659,0.07325751,222.7,222.46,0.18492078]
[1693495262959,0.07325751,222.7,222.47,0.18492078]
[1693495263160,0.07325751,222.7,222.46,0.18492078]
[1693495263365,0.07325751,222.7,222.47,0.18492078]
[1693495263567,0.07325751,222.7,222.46,0.18492078]
[1693495263865,0.07325751,222.7,222.47,0.18492078]
[1693495264064,0.07325751,222.7,222.46,0.18492078]
[1693495264267,0.07325751,222.7,222.47,0.18492078]
[1693495264464,0.07325751,222.71,222.46,0.18492078]
[1693495264767,0.07325751,222.71,222.47,0.18492078]
[1693495264969,0.07325751,222.7,222.48,0.18492078]
[1693495265170,0.07325751,222.7,222.49,0.18492078]
[1693495265362,0.07325751,222.7,222.45,0.07313516]
[1693495265667,0.07325751,222.7,222.46,0.18494169]
[1693495268566,0.07325751,222.71,222.46,0.18494169]
[1693495268766,0.14655308,222.73,222.46,0.18494169]
[1693495268767,0.07325751,222.7,222.46,0.18494169]
[1693495268963,0.07325751,222.71,222.46,0.18494169]
[1693495280081,0.07325751,222.72,222.46,0.25807685]
[1693495280279,0.07325751,222.72,222.47,0.18494169]
[1693495281782,0.07325751,222.72,222.47,0.25807685]
[1693495281983,0.07325751,222.72,222.48,0.18494169]
[1693495283482,0.07325751,222.73,222.48,0.25807685]
[1693495283687,0.07325751,222.73,222.49,0.18494169]
[1693495288281,0.07325751,222.73,222.49,0.25807685]
[1693495288483,0.07325751,222.73,222.5,0.18494169]
[1693495289089,0.07325751,222.73,222.5,0.25807685]
[1693495289392,0.07325751,222.73,222.51,0.18494169]
[1693495289788,0.07325751,222.73,222.52,0.18494169]
[1693495289988,0.07325751,222.73,222.51,0.18494169]
[1693495290292,0.07325751,222.73,222.52,0.18490999]
[1693495290486,0.07325751,222.73,222.49,0.07313516]
[1693495290684,0.07325751,222.73,222.5,0.25804479]
[1693495290888,0.07325751,222.73,222.51,0.18490963]
[1693495291483,0.07325751,222.74,222.51,0.18490963]
[1693495292586,0.07325751,222.74,222.5,0.18490963]
[1693495292790,0.07325751,222.74,222.51,0.18490963]
[1693495293990,0.07325751,222.74,222.5,0.25804479]
[1693495294185,0.07325751,222.74,222.51,0.18490963]
[1693495294392,0.07325751,222.74,222.52,0.18490963]
[1693495294592,0.07325751,222.74,222.49,0.07313516]
[1693495294793,0.07325751,222.74,222.5,0.18491489]
[1693495295188,0.07325751,222.73,222.5,0.18491489]
[1693495296892,0.07325751,222.73,222.49,0.18491489]
[1693495297195,0.07325751,222.73,222.5,0.18491489]
[1693495297389,0.07325751,222.73,222.49,0.18491489]
[1693495297588,0.07325751,222.73,222.5,0.18491489]
[1693495297893,0.07325751,222.73,222.51,0.18491489]
[1693495298093,0.07325751,222.73,222.49,0.18491489]
[1693495298293,0.07325751,222.73,222.5,0.18495046]
[1693495298492,0.07325751,222.73,222.51,0.18495046]
[1693495298693,0.07325751,222.73,222.48,0.07313516]
[1693495298894,0.07325751,222.73,222.49,0.18494895]
[1693495299394,0.07325751,222.73,222.49,0.25808411]
[1693495299694,0.07325751,222.73,222.5,0.18494895]
[1693495306591,0.07325751,222.72,222.5,0.18494895]
[1693495307000,0.07325751,222.72,222.51,0.18494895]
[1693495307198,0.07325751,222.72,222.49,0.18494895]
[1693495307399,0.07325751,222.72,222.5,0.18496087]
[1693495307599,0.07325751,222.71,222.5,0.18496087]
[1693495307799,0.07325751,222.71,222.48,0.07313516]
[1693495307999,0.07325751,222.71,222.49,0.18499537]
[1693495309103,0.07325751,222.7,222.49,0.18499537]
[1693495309401,0.07325751,222.7,222.47,0.07313516]
[1693495309701,0.07325751,222.7,222.48,0.18500013]
[1693495310200,0.07325751,222.71,222.48,0.18500013]
[1693495313201,0.07325751,222.71,222.48,0.25813529]
[1693495313407,0.07325751,222.71,222.49,0.18500013]
[1693495313807,0.07325751,222.71,222.48,0.18500013]
[1693495314004,0.07325751,222.71,222.49,0.18500013]
[1693495314203,0.07325751,222.71,222.5,0.18500013]
[1693495314411,0.07325751,222.71,222.48,0.25813529]
[1693495314612,0.07325751,222.71,222.49,0.18498167]
[1693495315804,0.07325751,222.71,222.5,0.18498167]
[1693495316009,0.07325751,222.71,222.47,0.07313516]
[1693495316210,0.07325751,222.71,222.48,0.25811462]
[1693495316511,0.07325751,222.71,222.49,0.18497946]
[1693495316712,0.07325751,222.71,222.48,0.18497946]
[1693495316910,0.07325751,222.71,222.49,0.18497946]
[1693495317210,0.07325751,222.71,222.5,0.18497946]
[1693495317408,0.07325751,222.71,222.48,0.18497946]
[1693495317607,0.07325751,222.71,222.49,0.18498322]
[1693495317811,0.07325751,222.71,222.5,0.18498322]
[1693495318011,0.07325751,222.71,222.48,0.18498322]
[1693495318306,0.07325751,222.71,222.49,0.18498218]
[1693495318511,0.07325751,222.71,222.48,0.18498218]
[1693495318810,0.07325751,222.71,222.49,0.18498218]
[1693495319009,0.07325751,222.71,222.48,0.18498218]
[1693495319210,0.07325751,222.71,222.49,0.18498218]
[1693495319410,0.07325751,222.71,222.5,0.18498218]
[1693495319610,0.07325751,222.71,222.48,0.18498218]
[1693495319811,0.07325751,222.71,222.49,0.18497846]
[1693495320010,0.07325751,222.71,222.5,0.18497846]
[1693495320210,0.07325751,222.71,222.48,0.18497846]
[1693495320412,0.07325751,222.71,222.49,0.18497797]
[1693495320614,0.07325751,222.71,222.5,0.18497797]
[1693495320805,0.07325751,222.71,222.48,0.18497797]
[1693495321009,0.07325751,222.71,222.49,0.1849776]
[1693495321208,0.07325751,222.71,222.5,0.1849776]
[1693495321404,0.07325751,222.71,222.48,0.1849776]
[1693495321607,0.07325751,222.71,222.47,0.07313516]
[1693495321608,0.07325751,222.71,222.49,0.1849772]
[1693495321807,0.07325751,222.71,222.48,0.1849772]
[1693495322011,0.07325751,222.71,222.49,0.1849772]
[1693495322204,0.07325751,222.71,222.5,0.1849772]
[1693495322408,0.07325751,222.71,222.48,0.1849772]
[1693495322611,0.07325751,222.71,222.49,0.1849766]
[1693495322811,0.07325751,222.71,222.5,0.1849766]
[1693495323006,0.07325751,222.71,222.48,0.1849766]
[1693495323213,0.07325751,222.71,222.49,0.18498209]
[1693495323407,0.07325751,222.71,222.48,0.18498209]
[1693495323610,0.07325751,222.71,222.49,0.18498209]
[1693495323811,0.07325751,222.71,222.48,0.18498209]
[1693495324012,0.07325751,222.71,222.49,0.18498209]
[1693495324211,0.07325751,222.71,222.48,0.18498209]
[1693495324508,0.07325751,222.71,222.47,0.07313516]
[1693495325314,0.07325751,222.71,222.48,0.18498009]
[1693495332818,0.07325751,222.7,222.48,0.18498009]
[1693495336621,0.07325751,222.69,222.48,0.18498009]
[1693495336821,0.07325751,222.69,222.46,0.07313516]
[1693495337122,0.07325751,222.69,222.47,0.18504253]
[1693495337522,0.07325751,222.69,222.48,0.18504253]
[1693495337722,0.07325751,222.69,222.47,0.18504253]
[1693495337923,0.07325751,222.69,222.48,0.18503899]
[1693495338124,0.07325751,222.69,222.47,0.18503899]
[1693495338325,0.07325751,222.69,222.48,0.18504065]
[1693495338525,0.07325751,222.69,222.46,0.07313516]
[1693495338725,0.07325751,222.69,222.47,0.18503527]
[1693495340019,0.07325751,222.7,222.47,0.18503527]
[1693495340224,0.07325751,222.69,222.47,0.18503527]
[1693495340624,0.07325751,222.69,222.41,0.07313516]
[1693495340625,0.07325751,222.64,222.41,0.07313516]
[1693495340820,0.07325751,222.64,222.42,0.18523043]
[1693495341523,0.07325751,222.66,222.42,0.18523043]
[1693495341824,0.07325751,222.66,222.43,0.18523043]
[1693495342030,0.07325751,222.66,222.39,0.07313516]
[1693495342224,0.07325751,222.66,222.4,0.18521218]
[1693495343322,0.07325751,222.67,222.4,0.18521218]
[1693495343523,0.07325751,222.67,222.39,0.18521218]
[1693495343730,0.07325751,222.67,222.4,0.18521218]
[1693495343922,0.07325751,222.67,222.39,0.18521218]
[1693495344128,0.07325751,222.67,222.4,0.18521218]
[1693495344330,0.07325751,222.68,222.39,0.18521218]
[1693495344528,0.07325751,222.68,222.4,0.18521218]
[1693495344828,0.07325751,222.68,222.41,0.18521218]
[1693495345024,0.07325751,222.68,222.42,0.18521218]
[1693495345230,0.07325751,222.68,222.43,0.18521218]
[1693495345528,0.07325751,222.68,222.37,0.07313516]
[1693495345729,0.07325751,222.69,222.38,0.18520812]
[1693495346531,0.07325751,222.69,222.39,0.18520812]
[1693495346731,0.07325751,222.69,222.4,0.18520812]
[1693495346932,0.07325751,222.69,222.37,0.18520812]
[1693495347233,0.07325751,222.69,222.38,0.18520812]
[1693495347532,0.07325751,222.69,222.36,0.07313516]
[1693495347533,0.07325751,222.69,222.39,0.18520812]
[1693495347733,0.07325751,222.69,222.37,0.18520812]
[1693495347934,0.07325751,222.69,222.38,0.18520812]
[1693495348137,0.07325751,222.69,222.39,0.18520812]
[1693495348434,0.07325751,222.69,222.4,0.18520812]
[1693495348634,0.07325751,222.69,222.41,0.18520812]
[1693495348934,0.07325751,222.69,222.42,0.18520812]
[1693495349235,0.07325751,222.7,222.43,0.18520812]
[1693495349438,0.07325751,222.7,222.35,0.07313516]
[1693495349627,0.07325751,222.7,222.36,0.18520667]
[1693495353630,0.07325751,222.7,222.37,0.18520667]
[1693495353833,0.07325751,222.7,222.38,0.18520667]
[1693495354134,0.07325751,222.7,222.39,0.18520667]
[1693495354338,0.07325751,222.7,222.4,0.18520667]
[1693495354535,0.07325751,222.7,222.41,0.18520667]
[1693495354730,0.07325751,222.7,222.35,0.18520667]
[1693495358235,0.07325751,222.69,222.35,0.18520667]
[1693495358842,0.07325751,222.7,222.35,0.18520667]
[1693495359344,0.07325751,222.69,222.35,0.18520667]
[1693495359544,0.07325751,222.7,222.35,0.25834183]
[1693495359740,0.07325751,222.7,222.36,0.18520667]
[1693495359942,0.07325751,222.71,222.36,0.25834183]
[1693495360142,0.14655308,222.73,222.4,0.07313516]
[1693495360442,3.41957192,222.88,222.34,0.14627033]
[1693495360443,0.07325751,222.76,222.41,0.25834183]
[1693495360642,0.07325751,222.76,222.42,0.18520667]
[1693495361543,0.07325751,222.76,222.42,0.25834183]
[1693495361739,0.07325751,222.76,222.43,0.18520667]
[1693495362642,0.07325751,222.76,222.44,0.18520667]
[1693495362842,0.07325751,222.77,222.42,0.18520667]
[1693495363042,0.07325751,222.77,222.42,0.25834183]
[1693495363243,0.07325751,222.77,222.43,0.18520667]
[1693495363442,0.07325751,222.77,222.42,0.18520667]
[1693495363637,0.07325751,222.77,222.43,0.18520667]
[1693495363847,0.07325751,222.77,222.44,0.18520667]
[1693495364046,0.07325751,222.77,222.42,0.18520667]
[1693495364246,0.07325751,222.77,222.43,0.18520667]
[1693495364645,0.07325751,222.77,222.42,0.18520667]
[1693495364946,0.07325751,222.77,222.43,0.18520667]
[1693495365249,0.07325751,222.77,222.44,0.18520667]
[1693495365547,0.07325751,222.77,222.45,0.18520667]
[1693495365747,0.07325751,222.77,222.41,0.07313516]
[1693495365748,0.07325751,222.77,222.42,0.18520667]
[1693495365942,0.07325751,222.77,222.42,0.25834183]
[1693495366151,0.07325751,222.77,222.43,0.18520667]
[1693495366643,0.07325751,222.77,222.42,0.18520667]
[1693495366846,0.07325751,222.77,222.43,0.18520667]
[1693495367050,0.07325751,222.77,222.44,0.18520667]
[1693495367249,0.07325751,222.77,222.42,0.18520667]
[1693495367453,0.07325751,222.77,222.43,0.18520667]
[1693495367646,0.07325751,222.77,222.44,0.18520667]
[1693495367845,0.07325751,222.77,222.42,0.18520667]
[1693495368044,0.07325751,222.77,222.43,0.18520667]
[1693495368245,0.07325751,222.77,222.44,0.18520667]
[1693495368445,0.07325751,222.77,222.45,0.18520667]
[1693495368650,0.07325751,222.77,222.42,0.18520667]
[1693495368847,0.07325751,222.77,222.43,0.18520667]
[1693495369048,0.07325751,222.77,222.44,0.18520667]
[1693495369250,0.07325751,222.77,222.45,0.18520667]
[1693495369449,0.07325751,222.77,222.42,0.18520667]
[1693495369645,0.07325751,222.77,222.43,0.18520667]
[1693495369852,0.07325751,222.77,222.44,0.18520667]
[1693495370048,0.07325751,222.77,222.42,0.18520667]
[1693495370253,0.07325751,222.77,222.43,0.18520667]
[1693495370447,0.07325751,222.77,222.44,0.18520667]
[1693495370646,0.07325751,222.77,222.42,0.18520667]
[1693495370847,0.07325751,222.77,222.43,0.18520667]
[1693495371048,0.07325751,222.77,222.44,0.18520667]
[1693495371251,0.07325751,222.77,222.42,0.18520667]
[1693495371453,0.07325751,222.77,222.43,0.18520667]
[1693495371653,0.07325751,222.77,222.44,0.18520667]
[1693495371853,0.07325751,222.77,222.42,0.18520667]
[1693495372053,0.07325751,222.77,222.43,0.18520667]
[1693495372254,0.07325751,222.77,222.44,0.18520667]
[1693495372554,0.07325751,222.78,222.45,0.18520667]
[1693495372750,0.07325751,222.78,222.42,0.18520667]
[1693495372946,0.07325751,222.78,222.43,0.18520667]
[1693495373144,0.07325751,222.78,222.44,0.18520667]
[1693495373350,0.07325751,222.78,222.45,0.18520667]
[1693495373550,0.07325751,222.78,222.42,0.18520667]
[1693495373750,0.07325751,222.78,222.43,0.18520667]
[1693495373948,0.07325751,222.78,222.44,0.18520667]
[1693495374149,0.07325751,222.78,222.45,0.18520667]
[1693495374346,0.07325751,222.78,222.42,0.18520667]
[1693495374548,0.07325751,222.78,222.43,0.18520667]
[1693495374753,0.07325751,222.78,222.44,0.18520667]
[1693495374947,0.07325751,222.78,222.45,0.18520667]
[1693495375150,0.07325751,222.78,222.42,0.18520667]
[1693495375350,0.07325751,222.78,222.43,0.18520667]
[1693495375552,0.07325751,222.79,222.44,0.18520667]
[1693495375853,0.07325751,222.79,222.45,0.18520667]
[1693495376055,0.07325751,222.79,222.41,0.18520667]
[1693495376253,0.07325751,222.79,222.42,0.18520667]
[1693495376450,0.07325751,222.79,222.43,0.18520667]
[1693495376650,0.07325751,222.79,222.44,0.18520667]
[1693495376849,0.07325751,222.78,222.41,0.18520667]
[1693495377050,0.07325751,222.78,222.42,0.18520667]
[1693495377248,0.07325751,222.78,222.41,0.18520667]
[1693495377447,0.07325751,222.78,222.42,0.18520667]
[1693495377648,0.07325751,222.78,222.43,0.18520667]
[1693495377851,0.07325751,222.78,222.44,0.18520667]
[1693495378047,0.07325751,222.78,222.45,0.18520667]
[1693495378253,0.07325751,222.78,222.41,0.18520667]
[1693495378553,0.07325751,222.78,222.42,0.18520667]
[1693495378748,0.07325751,222.78,222.43,0.18520667]
[1693495378947,0.07325751,222.78,222.44,0.18520667]
[1693495379255,0.07325751,222.78,222.45,0.18520667]
[1693495379455,0.07325751,222.78,222.41,0.18520667]
[1693495379654,0.07325751,222.78,222.42,0.18520667]
[1693495379854,0.07325751,222.78,222.43,0.18520667]
[1693495380053,0.07325751,222.78,222.44,0.18520667]
[1693495380254,0.07325751,222.78,222.41,0.18520667]
[1693495380455,0.07325751,222.78,222.42,0.18520667]
[1693495380754,0.07325751,222.78,222.43,0.18520667]
[1693495381055,0.07325751,222.78,222.44,0.18520667]
[1693495381254,0.07325751,222.78,222.45,0.18520667]
[1693495381456,0.07325751,222.78,222.46,0.18520667]
[1693495381656,0.07325751,222.79,222.41,0.18520667]
[1693495381854,0.07325751,222.78,222.42,0.18520667]
[1693495382156,0.07325751,222.78,222.43,0.18520667]
[1693495382455,0.07325751,222.78,222.44,0.18520667]
[1693495382656,0.07325751,222.78,222.45,0.18520667]
[1693495382851,0.07325751,222.78,222.46,0.18520667]
[1693495383053,0.07325751,222.78,222.41,0.18520667]
[1693495383256,0.07325751,222.78,222.42,0.18520667]
[1693495383456,0.07325751,222.78,222.41,0.18520667]
[1693495383656,0.07325751,222.78,222.42,0.18520667]
[1693495383860,0.07325751,222.78,222.43,0.18520667]
[1693495384056,0.07325751,222.78,222.41,0.18520667]
[1693495384252,0.07325751,222.78,222.4,0.07313516]
[1693495384253,0.07325751,222.78,222.42,0.18520667]
[1693495384452,0.07325751,222.78,222.43,0.18520667]
[1693495384654,0.07325751,222.78,222.44,0.18520667]
[1693495384852,0.07325751,222.78,222.41,0.18520667]
[1693495385052,0.07325751,222.78,222.42,0.18520667]
[1693495385254,0.07325751,222.78,222.43,0.18520667]
[1693495385454,0.07325751,222.78,222.4,0.07313516]
[1693495385455,0.07325751,222.78,222.41,0.18520667]
[1693495385653,0.07325751,222.78,222.42,0.18520667]
[1693495385851,0.07325751,222.78,222.43,0.18520667]
[1693495386053,0.07325751,222.77,222.44,0.18520667]
[1693495386260,0.07325751,222.77,222.41,0.18520667]
[1693495386456,0.07325751,222.77,222.42,0.18520667]
[1693495386758,0.07325751,222.77,222.43,0.18520667]
[1693495386957,0.07325751,222.77,222.44,0.18520667]
[1693495387157,0.07325751,222.77,222.41,0.25834183]
[1693495387353,0.07325751,222.77,222.42,0.18520667]
[1693495388862,0.07325751,222.76,222.42,0.18520667]
[1693495389259,0.07325751,222.76,222.42,0.25834183]
[1693495389458,0.07325751,222.76,222.43,0.18520667]
[1693495390257,0.07325751,222.75,222.43,0.18520667]
[1693495391163,0.07325751,222.75,222.43,0.25834183]
[1693495391360,0.07325751,222.75,222.44,0.18520667]
[1693495392360,0.07325751,222.74,222.44,0.25834183]
[1693495392562,0.07325751,222.74,222.45,0.18520667]
[1693495393162,0.07325751,222.74,222.46,0.07313516]
[1693495393359,0.07325751,222.73,222.47,0.18520667]
[1693495394365,0.07325751,222.7,222.49,0.07313516]
[1693495394559,0.07325751,222.7,222.5,0.18520667]
[1693495395366,0.07325751,222.69,222.5,0.18520667]
[1693495395561,0.07325751,222.7,222.5,0.18520667]
[1693495396764,0.07325751,222.69,222.5,0.18520667]
[1693495399470,0.07325751,222.7,222.5,0.25834183]
[1693495399666,0.07325751,222.7,222.51,0.18520667]
[1693495400071,0.07325751,222.72,222.51,0.18520667]
[1693495400373,0.07325751,222.71,222.51,0.18520667]
[1693495401966,0.07325751,222.72,222.51,0.18520667]
[1693495402372,0.07325751,222.72,222.52,0.18520667]
[1693495402572,0.07325751,222.72,222.5,0.07313516]
[1693495402773,0.07325751,222.72,222.51,0.18491974]
[1693495403167,0.07325751,222.71,222.5,0.18491974]
[1693495403475,0.07325751,222.71,222.51,0.18493917]
[1693495403677,0.07325751,222.71,222.49,0.07313516]
[1693495403975,0.07325751,222.7,222.5,0.18494645]
[1693495404175,0.07325751,222.7,222.48,0.07313516]
[1693495404375,0.07325751,222.7,222.49,0.18495821]
[1693495406971,0.07325751,222.71,222.49,0.18495821]
[1693495407969,0.07325751,222.7,222.49,0.18495821]
[1693495408376,0.07325751,222.71,222.49,0.18495821]
[1693495408876,0.07325751,222.7,222.49,0.18495821]
[1693495409270,0.07325751,222.71,222.49,0.18495821]
[1693495409881,3.12423073,223.0,222.49,0.18495821]
[1693495410073,0.07345753,222.71,222.48,0.07363144]
[1693495410378,0.07345753,222.71,222.49,0.18495821]
[1693495411375,0.07345753,222.7,222.49,0.18495821]
[1693495413073,2.4485846,222.84,222.49,0.18495821]
[1693495413277,0.07345481,222.7,222.5,0.18495821]
[1693495413479,0.07345481,222.7,222.49,0.18495821]
[1693495413673,0.07345481,222.7,222.5,0.18497963]
[1693495413875,0.07345481,222.7,222.49,0.18497963]
[1693495414072,0.07345481,222.7,222.5,0.18498365]
[1693495414275,0.07345481,222.7,222.48,0.07363102]
[1693495414476,0.07345481,222.7,222.49,0.18497906]
[1693495415880,0.07345481,222.71,222.49,0.18497906]
[1693495426487,0.07345481,222.7,222.49,0.18497906]
[1693495426982,0.07345481,222.7,222.48,0.18497906]